[Event "Arsen Yeghiazaryan Memorial 2022"]
[Site "Yerevan"]
[Date "2022.07.07"]
[Round "7.3"]
[White "Alaverdyan, Gevorg"]
[Black "Hayrapetyan, Hovik"]
[Result "0-1"]
[ECO "B90"]
[WhiteElo "2336"]
[BlackElo "2481"]
[Annotator "TA"]
[PlyCount "110"]
[EventDate "2022.06.30"]
[EventType "tourn"]
[EventCountry "ARM"]
[SourceTitle "playchess.com"]
[Source "ChessBase"]
[SourceQuality "1"]
[TimeControl "40/5400+30:1800+30"]

{[%evp 10,110,17,9,54,40,35,36,46,27,45,40,41,34,59,23,27,26,18,28,91,0,4,8,91,66,136,80,67,21,48,49,84,72,85,75,76,31,31,30,26,34,35,35,25,34,31,-15,-14,-11,0,0,0,0,0,-144,-162,-131,-10,-145,-145,-117,-121,-176,-177,-556,-578,-577,-564,-545,-309,-643,-638,-589,-565,-801,-800,-773,-765,-766,-769,-825,-820,-816,-788,-849,-849,-849,-849,-837,-830,-818,-769,-29977,-29978,-29988,-29989,-29990,-29991,-29992,-29992,-29992,-29991]} 1. e4 {[%emt 0:00:04]} c5 {[%emt 0:00:06]} 2. Nf3 {[%emt 0:00:05]} d6 {[%emt 0:00:08]} 3. d4 {[%emt 0:00:05]} cxd4 {[%emt 0:00:03]} 4. Nxd4 {[%emt 0:00:06]} Nf6 {[%emt 0:00:03]} 5. Nc3 {[%emt 0:00:08]} a6 {[%emt 0:00:03]} 6. Nb3 {[%emt 0:00:13]} b5 {[%emt 0:11:00] B90: Sicilian Najdorf: Unusual White 6th moves, 6 Be3 Ng4 and 6 Be3 e5.} 7. a4 {[%emt 0:00:54]} b4 {[%emt 0:00:04]} 8. Nd5 {[%emt 0:00:03]} e6 {[%emt 0:03:01] White is slightly better.} 9. Nxf6+ {[%emt 0:07:30]} (9. Nxb4 Nxe4 10. Be3 Bb7 $11) 9... Qxf6 {[%emt 0:00:19]} 10. Bd3 {[%emt 0:00:42]} Nc6 {[%emt 0:03:27] [#]} 11. O-O $146 {[%emt 0:00:04]} ({Predecessor:} 11. a5 Be7 12. f4 Bb7 13. O-O Nd4 14. Nxd4 Qxd4+ 15. Kh1 O-O 16. Qe2 Qc5 17. Bd2 {1-0 (33) Guimaraes,W (2230)-Barreiros da Silva,D (1988) Florianopolis 2020}) 11... Qd8 {[%emt 0:04:45]} 12. Qg4 {[%emt 0:05:35]} Ne5 {[%emt 0:10:41]} 13. Qg3 {[%emt 0:07:31]} Nxd3 {[%emt 0:01:28]} 14. cxd3 {[%emt 0:01:47]} a5 {[%emt 0:04:54]} (14... h5 $11) 15. Bd2 {[%emt 0:00:56]} (15. Bg5 $16 f6 16. Be3) 15... h5 $11 {[%emt 0:09:38]} 16. Bg5 {[%emt 0:12:41]} Qb6 {[%emt 0:00:34]} (16... h4 $11 17. Bxd8 hxg3 18. Bxa5 gxh2+ 19. Kh1 Rh4) 17. Rfc1 {[%emt 0:00:37]} e5 {[%emt 0:15:27]} (17... h4 $1 $14 18. Bxh4 f6) 18. Nd2 {[%emt 0:10:27]} ({Better is} 18. d4 $1) 18... Be6 $16 {[%emt 0:02:57][%cal Oh5h4]} 19. Nc4 {[%emt 0:00:42]} (19. h4 $14) 19... Qa6 {[%emt 0:00:47][%cal Oh5h4]} 20. h4 {[%emt 0:01:09]} Rb8 {[%emt 0:02:34]} 21. Be3 {[%emt 0:04:05]} f6 {[%emt 0:06:42]} 22. f4 {[%emt 0:02:41]} (22. Nd2 {is interesting.} Kf7 23. d4 Be7 24. d5) 22... Bg4 {[%emt 0:06:59]} 23. d4 {[%emt 0:15:36][%cal Rd4e5]} Be7 {[%emt 0:00:08]} 24. fxe5 {[%emt 0:08:16]} dxe5 {[%emt 0:00:17]} 25. dxe5 {[%emt 0:00:11]} O-O {[%emt 0:00:04]} 26. exf6 {[%emt 0:01:39]} Bxf6 {[%emt 0:00:01]} 27. e5 {[%emt 0:01:37]} Be7 {[%emt 0:00:02]} 28. b3 {[%emt 0:00:03]} (28. Nd6 $14) 28... Rbd8 $11 {[%emt 0:01:20][%mdl 1024] Black has compensation.} 29. Bb6 {[%emt 0:03:32]} Rd5 {[%emt 0:01:06]} 30. Re1 {[%emt 0:00:04]} Qc8 {[%emt 0:07:11]} 31. Kh1 {[%emt 0:01:35]} (31. Bxa5 Bc5+ 32. Re3 Rd3 33. Bxb4 Rxe3 34. Nxe3 Bxb4 35. Nxg4 hxg4 $19) 31... Qd7 {[%emt 0:01:00]} 32. Bf2 {[%emt 0:06:28]} ({Don't take} 32. Bxa5 Be6 33. Bb6 (33. Nb6 Qa7 $14) 33... Rd3) (32. Kh2 $11 {keeps the balance.}) 32... Rd3 $17 {[%emt 0:02:28]} 33. Re3 {[%emt 0:00:09]} Rd1+ {[%emt 0:00:31]} (33... Rd4 $1 $17 {Threatens to win with ...Rdf4.} 34. Ree1 Rd3) 34. Rxd1 {[%emt 0:00:44]} (34. Re1 $1 $11 Rd3 35. Re3) 34... Qxd1+ {[%emt 0:00:02]} 35. Re1 {[%emt 0:00:05]} Qc2 {[%emt 0:00:04]} 36. Kg1 {[%emt 0:08:07] [#]} (36. Bd4 $17 {was necessary.} Be6 37. Nxa5) 36... Be6 $1 $19 {[%emt 0:00:26] This bishop pair is nice.} 37. Qe3 $2 {[%emt 0:01:40]} ({But not} 37. Nxa5 $2 {[#]} Rxf2 $1 {[%mdl 512]} 38. Qxf2 Bc5 $19) (37. Bd4 {nothing else works.}) 37... Bxc4 {[%emt 0:00:54]} 38. bxc4 {[%emt 0:00:02]} b3 {[%emt 0:00:12] White must now prevent ...b2.} 39. Qe2 {[%emt 0:01:29]} Ba3 {[%emt 0:03:50] And now ...Qxe2 would win.} 40. Bd4 $2 {[%emt 0:00:00]} (40. Qxc2 bxc2 41. Be3) 40... Qxe2 {[%emt 0:00:00]} 41. Rxe2 {[%emt 0:00:41][%mdl 4096] Endgame KRB-KRB} Rf4 $1 {[%emt 0:02:11][%csl LRd4,LRh4]} 42. Bb2 {[%emt 0:13:53]} Bc5+ {[%emt 0:00:05]} 43. Kh2 {[%emt 0:00:00]} Rxh4+ {[%emt 0:00:50]} 44. Kg3 {[%emt 0:00:01]} Rxc4 {[%emt 0:01:04]} 45. e6 {[%emt 0:05:48]} Kf8 {[%emt 0:00:58]} 46. Rd2 {[%emt 0:04:40]} Rxa4 {[%emt 0:04:17] ...Rg4+ is the strong threat.} 47. Rd7 {[%emt 0:00:23]} Rg4+ {[%emt 0:00:09]} 48. Kf3 {[%emt 0:00:12]} a4 {[%emt 0:00:20][%cal Ba5a4,Ba4a3][%mdl 32]} 49. Rf7+ {[%emt 0:01:48]} Ke8 {[%emt 0:00:12] Hoping for ...a3.} 50. Rb7 {[%emt 0:06:10]} a3 {[%emt 0:01:00]} 51. Be5 {[%emt 0:00:02]} Rb4 {[%emt 0:01:32] Black mates.} 52. Rxg7 {[%emt 0:00:23]} b2 {[%emt 0:00:28]} 53. Bf6 {[%emt 0:00:05]} b1=Q {[%emt 0:00:21][%cal Rb1d3]} 54. Rg8+ {[%emt 0:00:15]} Bf8 {[%emt 0:00:05]} 55. e7 {[%emt 0:00:03]} Qf5+ {[%emt 0:00:15] Weighted Error Value: White=0.64/Black=0.18 (very precise)} 0-1

[Event "Arsen Yeghiazaryan Memorial 2022"]
[Site "Yerevan"]
[Date "2022.07.07"]
[Round "7.4"]
[White "Yeritsyan, Hayk"]
[Black "Nazari, Arad"]
[Result "0-1"]
[ECO "B90"]
[WhiteElo "2249"]
[BlackElo "2401"]
[Annotator "TA"]
[PlyCount "82"]
[EventDate "2022.06.30"]
[EventType "tourn"]
[EventCountry "ARM"]
[SourceTitle "playchess.com"]
[Source "ChessBase"]
[SourceQuality "1"]
[TimeControl "40/5400+30:1800+30"]

{[%evp 14,82,30,12,60,42,46,-8,42,-77,-40,-31,-13,-26,0,-1,-28,-23,0,0,0,0,0,9,28,-68,-81,-79,-15,-47,-47,-67,-18,-115,-126,-158,-148,-163,-105,-215,-234,-208,-170,-223,-184,-290,-292,-294,-251,-299,-209,-309,-301,-458,-318,-299,-302,-356,-314,-398,-388,-620,-578,-805,-773,-1013,-966,-29986,-29987,-29987,-4894]} 1. e4 {[%emt 0:01:46]} c5 {[%emt 0:00:04]} 2. Nf3 {[%emt 0:00:22]} d6 {[%emt 0:00:08]} 3. d4 {[%emt 0:00:19]} cxd4 {[%emt 0:00:02]} 4. Nxd4 {[%emt 0:00:09]} Nf6 {[%emt 0:00:07]} 5. Nc3 {[%emt 0:00:13]} a6 {[%emt 0:00:06]} 6. Be3 {[%emt 0:00:11]} e5 {[%emt 0:00:08]} 7. Nb3 {[%emt 0:00:11]} Be6 {[%emt 0:01:44]} 8. f4 {[%emt 0:01:07][%cal Bf2f4,Bf4f5][%mdl 32]} Be7 {[%emt 0:06:24] B90: Sicilian Najdorf: Unusual White 6th moves, 6 Be3 Ng4 and 6 Be3 e5.} (8... exf4 $11 9. Bxf4 Nc6) 9. f5 $14 {[%emt 0:01:22]} Bd7 {[%emt 0:00:01] [#]} 10. a4 $146 {[%emt 0:23:23]} (10. Qf3 $14) ({Predecessor:} 10. Qf3 Bc6 11. O-O-O h5 12. h3 h4 13. Kb1 Nbd7 14. Rg1 Rc8 15. g3 hxg3 16. Rxg3 {0-1 (40) Braeuer,F (2428)-Keymer,V (2655) Germany 2022}) 10... Bc6 {[%emt 0:02:51]} (10... Nc6 $11) 11. Nd5 {[%emt 0:02:49]} (11. Qf3 $1 $14) 11... Bxd5 {[%emt 0:13:57]} (11... Nxe4 12. Bb6 Qc8 13. Nc7+ Kf8 14. Nxa8 $11) 12. exd5 {[%emt 0:00:12]} Qc8 {[%emt 0:00:40]} (12... Nbd7 13. c4 $11) 13. Qd3 {[%emt 0:04:34]} e4 {[%emt 0:05:02]} 14. Qc4 {[%emt 0:00:32]} Qxf5 {[%emt 0:03:00]} 15. Nd4 {[%emt 0:00:39]} Qd7 {[%emt 0:13:41]} 16. Be2 {[%emt 0:01:00]} O-O {[%emt 0:14:32]} (16... Ng4 17. Bxg4 Qxg4 18. O-O $16) 17. O-O {[%emt 0:00:22]} g6 {[%emt 0:01:02] Against Nf5} 18. Bg5 {[%emt 0:05:04]} Qd8 {[%emt 0:06:19]} (18... Rc8 $5 {[%cal Rc8c4]} 19. Qb3 Ne8 $11) 19. Ra3 {[%emt 0:05:07]} (19. Qb3 $11 Nbd7 20. Bh6 (20. Qxb7 Nc5 $11)) 19... Nbd7 $15 {[%emt 0:01:41]} 20. Rg3 {[%emt 0:02:52][%cal Od4f5]} Kh8 {[%emt 0:08:31]} ({Black should play} 20... Qb6 $17 21. c3 Qxb2) 21. b4 {[%emt 0:01:27]} (21. Bh6 {looks sharper.} Qb6 22. Bxf8 Rxf8 23. Rb3) 21... Ne5 {[%emt 0:01:36]} 22. Qb3 {[%emt 0:00:35] [#]} Rg8 {[%emt 0:05:05]} (22... Nxd5 $1 $15 {might be stronger.} 23. Bh6 Nc7 $1 24. Bxf8 Bxf8) 23. c4 {[%emt 0:02:30] [#]} (23. Bd2 $11) 23... Nxd5 $1 $17 {[%emt 0:06:28][%mdl 512] Pair of Knights!} 24. Bc1 {[%emt 0:01:04] [#]} (24. Bd2 Nc7) 24... Nc7 {[%emt 0:01:13]} 25. Rh3 {[%emt 0:00:40]} Bg5 {[%emt 0:01:32] Prevents Qe3.} (25... f5 $19 26. Rd1 Bg5) 26. Qc3 {[%emt 0:07:10]} (26. Bb2 $17) 26... Rg7 {[%emt 0:00:32]} 27. Bb2 {[%emt 0:01:15]} Qe7 {[%emt 0:01:06]} 28. c5 {[%emt 0:02:09]} (28. Rg3 $142) 28... dxc5 {[%emt 0:00:54]} 29. bxc5 {[%emt 0:00:04]} (29. Qxc5 {was called for.} f6 30. Rb3) 29... Nd5 $19 {[%emt 0:01:28]} 30. Qb3 {[%emt 0:01:38]} Nf4 {[%emt 0:00:45]} ({Not} 30... Qxc5 31. Qxb7 Rd8 32. Kh1 $17) 31. Rg3 {[%emt 0:01:13]} h6 {[%emt 0:00:12] And now ...Rd8 would win.} ({Inferior is} 31... Qxc5 32. Kh1 Qe7 33. Ba3 $17) 32. Kh1 {[%emt 0:01:45]} (32. h4 $142 Nxe2+ 33. Nxe2 Bxh4 34. Rh3) 32... Rd8 {[%emt 0:00:43][%cal Od8d4,Ba8d8,Bd8d2,Bd2d3][%mdl 32]} 33. Qb6 {[%emt 0:09:16]} (33. Qc2 $142 Nfd3 34. Ba1) 33... Nxe2 {[%emt 0:00:53]} 34. Nxe2 {[%emt 0:00:03][%cal Og3g5] aiming for Rxg5!} Rd2 {[%emt 0:01:16]} 35. Ng1 {[%emt 0:01:45]} Kh7 {[%emt 0:01:17] Hoping for ...Nc4.} 36. Bc1 {[%emt 0:02:08]} Rd3 {[%emt 0:00:15]} 37. Rxg5 {[%emt 0:00:33]} (37. Bxg5 $142 hxg5 38. Rxd3 Nxd3 39. c6 bxc6 40. Qxc6) 37... hxg5 {[%emt 0:00:07]} 38. Nh3 {[%emt 0:00:43]} f6 {[%emt 0:00:44]} 39. Nf2 {[%emt 0:01:37] [#]} e3 $1 {[%emt 0:00:21][%cal Be4e3,Be3e2][%mdl 32]} 40. Ne4 {[%emt 0:00:00]} (40. Nxd3 e2) 40... e2 {[%emt 0:00:00][%cal Re2f1]} 41. Nxf6+ {[%emt 0:00:19] [#]} Qxf6 $3 {[%emt 0:01:38][%mdl 512] Weighted Error Value: White=0.76/Black=0.22 (precise)} 0-1

[Event "Arsen Yeghiazaryan Memorial 2022"]
[Site "Yerevan"]
[Date "2022.07.07"]
[Round "7.5"]
[White "Quparadze, Giga"]
[Black "Yeremyan, Alen"]
[Result "1/2-1/2"]
[ECO "B31"]
[WhiteElo "2482"]
[BlackElo "2233"]
[Annotator "TA"]
[PlyCount "169"]
[EventDate "2022.06.30"]
[EventType "tourn"]
[EventCountry "ARM"]
[SourceTitle "playchess.com"]
[Source "ChessBase"]
[SourceQuality "1"]
[TimeControl "40/5400+30:1800+30"]

{[%evp 19,169,0,0,0,21,0,24,26,22,46,44,40,45,29,30,25,27,26,30,20,27,25,23,18,45,23,27,17,20,18,37,0,0,0,0,0,0,0,-18,-20,0,0,14,0,8,5,40,-16,-22,-22,-37,-71,0,0,0,0,0,0,0,0,0,-106,0,0,0,0,0,0,0,0,0,-51,-51,-51,-51,-46,-50,-50,0,0,16,21,21,13,13,14,14,14,14,13,14,14,13,13,13,13,13,13,13,13,14,15,104,104,104,104,104,0,0,0,0,0,24,0,0,0,0,0,0,0,0,0,0,0,0,0,0,0,0,0,0,0,0,0,0,0,0,0,0,0,0,0,0,0,0,0,0,0,0,0,0,0]} 1. e4 {[%emt 0:00:03]} c5 {[%emt 0:00:06]} 2. Nf3 {[%emt 0:00:04]} Nc6 {[%emt 0:00:16]} 3. Bb5 {[%emt 0:00:05]} g6 {[%emt 0:00:27]} 4. O-O {[%emt 0:00:06]} Bg7 {[%emt 0:00:03]} 5. c3 {[%emt 0:00:06]} Nf6 {[%emt 0:00:31]} 6. Re1 {[%emt 0:00:05]} O-O {[%emt 0:00:21]} 7. d4 {[%emt 0:00:04]} cxd4 {[%emt 0:01:00]} 8. cxd4 {[%emt 0:00:04]} d5 {[%emt 0:00:16]} 9. e5 {[%emt 0:00:05]} Ne4 {[%emt 0:00:06]} 10. Bxc6 {[%emt 0:00:03]} bxc6 {[%emt 0:00:06]} 11. Be3 $1 {[%emt 0:00:03][%mdl 4] is more profitable than 11.Nbd2 at the moment. B31: Sicilian: 2...Nc6 3 Bb5 g6.} Qb6 {[%emt 0:04:58]} 12. Qc1 {[%emt 0:00:06]} Rb8 {[%emt 0:02:40]} 13. b3 {[%emt 0:00:33] White has an edge.} f6 {[%emt 0:05:34]} 14. Nc3 {[%emt 0:00:32]} Nxc3 {[%emt 0:07:53]} 15. Qxc3 {[%emt 0:00:11]} Bg4 {[%emt 0:00:24]} 16. exf6 {[%emt 0:01:49]} exf6 {[%emt 0:00:53]} 17. Bf4 {[%emt 0:00:06]} Rbc8 {[%emt 0:02:27]} 18. Bd6 {[%emt 0:00:10]} Rfe8 {[%emt 0:01:12] [#]} 19. Nd2 $146 {[%emt 0:01:51]} ({Predecessor:} 19. Rxe8+ Rxe8 20. Re1 Rxe1+ 21. Qxe1 Qd8 22. Bc5 a6 23. h3 Bc8 24. Qb4 Kf7 25. Qb8 {½-½ (51) Petrov,N (2586)-Halkias,S (2530) Arco 2019}) 19... Qb7 {[%emt 0:03:32]} 20. h3 {[%emt 0:00:54]} Bf5 {[%emt 0:02:11]} 21. Bc5 {[%emt 0:00:26]} g5 {[%emt 0:01:01]} 22. Nf1 {[%emt 0:01:10]} Bg6 {[%emt 0:02:45]} 23. h4 {[%emt 0:00:06]} h6 {[%emt 0:02:54]} 24. Qg3 {[%emt 0:00:06]} Qd7 {[%emt 0:01:44]} 25. f4 {[%emt 0:00:21]} g4 {[%emt 0:01:43]} 26. Qf2 {[%emt 0:02:17]} Be4 {[%emt 0:02:15]} 27. f5 {[%emt 0:04:24]} Qxf5 {[%emt 0:09:18]} 28. Qxf5 {[%emt 0:00:06]} Bxf5 {[%emt 0:00:03] This bishop pair is nice.} 29. Bxa7 {[%emt 0:03:47]} Be4 {[%emt 0:12:22]} 30. Ng3 {[%emt 0:00:32]} Kf7 {[%emt 0:02:15]} 31. Bc5 {[%emt 0:00:08]} f5 {[%emt 0:01:34]} 32. Nh5 {[%emt 0:02:33]} Bh8 {[%emt 0:01:53]} 33. Re3 {[%emt 0:03:30]} (33. a4 $14) 33... Ra8 $1 $11 {[%emt 0:00:59]} 34. a4 {[%emt 0:02:27]} Ra5 {[%emt 0:01:21]} 35. Rd1 {[%emt 0:00:05] [#]} Rb8 {[%emt 0:01:02]} (35... Rxc5 $1 $17 36. dxc5 Be5) 36. Bd6 {[%emt 0:00:23]} Rb7 {[%emt 0:03:49]} 37. Rc3 {[%emt 0:00:13]} Ra6 {[%emt 0:01:51]} 38. Kf2 {[%emt 0:00:16]} Ke6 {[%emt 0:01:25]} 39. Bc5 {[%emt 0:01:27]} Kd7 {[%emt 0:01:51]} 40. Bf8 {[%emt 0:00:00] [#]} (40. g3 $11 {keeps the balance.}) 40... Ra8 {[%emt 0:00:00]} (40... Rab6 $1 $17 41. Ng3 Rxb3 42. Rxb3 Rxb3 43. Nxe4 fxe4) 41. Bc5 {[%emt 0:02:33]} Ra5 {[%emt 0:07:45][%cal Oa5c5] ...Rxc5! is the strong threat.} 42. Bf8 {[%emt 0:07:39]} Ra8 {[%emt 0:01:47]} 43. Bc5 {[%emt 0:03:49]} Ra5 {[%emt 0:00:12][%cal Oa5c5] Hoping for ...Rxc5!} 44. Ba3 {[%emt 0:07:33]} Ra8 {[%emt 0:00:36]} 45. Rd2 {[%emt 0:00:06]} (45. Bc5 $11) 45... Rab8 $15 {[%emt 0:01:36]} 46. Bc5 {[%emt 0:00:04]} Rxb3 {[%emt 0:03:15]} 47. Rxb3 {[%emt 0:00:03]} Rxb3 {[%emt 0:00:05]} 48. a5 {[%emt 0:00:03]} Kc8 {[%emt 0:04:36]} (48... g3+ $1 $15 49. Nxg3 Bf6 50. Nxe4 fxe4) 49. a6 $11 {[%emt 0:00:47]} g3+ {[%emt 0:03:45]} 50. Nxg3 {[%emt 0:01:59]} Bf6 $1 {[%emt 0:01:11]} 51. Ra2 {[%emt 0:00:32]} (51. a7 {feels hotter.} Kb7 52. Ra2 Ka8 53. Nxe4 fxe4 54. g3) 51... Kb8 {[%emt 0:00:51]} (51... Bxh4 {is more complex.} 52. a7 Bxg3+ 53. Ke2 Rb8) 52. Nxe4 {[%emt 0:01:12]} fxe4 {[%emt 0:05:39][%mdl 4096] Endgame KRB-KRB} ({Resist} 52... dxe4 53. g3 $16) 53. g3 {[%emt 0:00:35]} Rd3 {[%emt 0:10:04]} 54. Ra4 {[%emt 0:00:25]} Ka8 {[%emt 0:01:34]} 55. a7 {[%emt 0:00:06]} Bd8 {[%emt 0:01:56]} 56. Ra6 {[%emt 0:00:10]} Rf3+ {[%emt 0:02:41]} 57. Ke2 {[%emt 0:02:42]} Rf6 {[%emt 0:00:01]} (57... Rxg3 $2 58. Rxc6 Bc7 59. Rxc7 $18) 58. g4 {[%emt 0:00:07]} Rg6 {[%emt 0:00:47]} 59. h5 {[%emt 0:00:05]} Re6 {[%emt 0:00:48]} 60. Ra1 {[%emt 0:00:15] Strongly threatening Rb1.} Rf6 {[%emt 0:01:07]} (60... Be7 $11 {remains equal.}) 61. Rb1 {[%emt 0:04:37][%csl Ga7][%cal Rb1b8]} Bc7 {[%emt 0:00:12] [#] Against Rb8+} 62. Rg1 $1 {[%emt 0:00:17] And now g5 would win.} Bd8 {[%emt 0:04:30]} 63. Rg3 {[%emt 0:02:59]} (63. g5 $16 hxg5 64. Rf1 Rxf1 65. Kxf1) 63... Rf7 {[%emt 0:00:35]} 64. Rb3 {[%emt 0:00:20][%csl Ga7][%cal Rb3b8]} Bc7 {[%emt 0:02:09] Inhibits Rb8+.} 65. Rb1 {[%emt 0:00:05]} Rf6 {[%emt 0:00:59]} 66. Rf1 {[%emt 0:00:26]} (66. Bb4 $5 {[%cal Rb1f1]}) 66... Rxf1 {[%emt 0:01:24] The position is equal.} 67. Kxf1 {[%emt 0:00:05][%cal Og4g5] aiming for g5! KB-KB} Bd8 $1 {[%emt 0:00:14]} 68. Ke2 {[%emt 0:00:09]} Bg5 {[%emt 0:00:38]} 69. Bb4 {[%emt 0:00:12] Black must now prevent Bd2.} Bf6 $1 {[%emt 0:01:26]} (69... Kxa7 $2 70. Bd2 Be7 71. Bxh6 $18) 70. Bc5 {[%emt 0:01:42]} Kb7 {[%emt 0:00:42]} 71. Kf2 {[%emt 0:00:05]} Bh4+ {[%emt 0:00:25]} 72. Kg2 {[%emt 0:00:04]} Bg5 {[%emt 0:00:44]} 73. Kg3 {[%emt 0:00:05]} Be3 {[%emt 0:01:11]} 74. Kh3 {[%emt 0:02:56]} Ka8 {[%emt 0:00:44]} 75. Kg2 {[%emt 0:00:13]} Kb7 {[%emt 0:00:25]} 76. Kf1 {[%emt 0:06:53]} Ka8 {[%emt 0:00:09]} 77. Ke2 {[%emt 0:05:39]} Bg5 $1 {[%emt 0:00:06]} 78. Bb4 {[%emt 0:01:44] Threatens to win with Bd2.} Bf6 $1 {[%emt 0:00:15]} (78... Kxa7 $2 79. Bd2 Be7 80. Bxh6 $18) 79. Bc5 {[%emt 0:01:02]} Bg5 {[%emt 0:00:06]} 80. Kf2 {[%emt 0:00:04]} Bh4+ {[%emt 0:00:13]} 81. Kg2 {[%emt 0:00:05]} Bg5 {[%emt 0:00:10]} 82. Bb6 {[%emt 0:00:04]} Be3 {[%emt 0:00:35]} 83. Kg3 {[%emt 0:00:17]} Kb7 {[%emt 0:01:04]} 84. Bc5 {[%emt 0:00:06]} Ka8 {[%emt 0:00:23]} 85. Kg2 {[%emt 0:03:31] Weighted Error Value: White=0.10 (very precise) /Black=0.12 (very precise)} 1/2-1/2

[Event "Arsen Yeghiazaryan Memorial 2022"]
[Site "Yerevan"]
[Date "2022.07.08"]
[Round "8.1"]
[White "Quparadze, Giga"]
[Black "Agasarov, Benik"]
[Result "1-0"]
[ECO "C65"]
[WhiteElo "2482"]
[BlackElo "2225"]
[Annotator "RC"]
[PlyCount "73"]
[EventDate "2022.06.30"]
[EventType "tourn"]
[EventCountry "ARM"]
[SourceTitle "playchess.com"]
[Source "ChessBase"]
[SourceQuality "1"]
[TimeControl "40/5400+30:1800+30"]

1. e4 {[%emt 0:00:02]} e5 {[%emt 0:00:09]} 2. Nf3 {[%emt 0:00:04]} Nc6 {[%emt 0:00:09]} 3. Bb5 {[%emt 0:00:03]} Nf6 {[%emt 0:00:11]} 4. d3 {[%emt 0:00:06]} Bc5 {[%emt 0:00:28]} 5. c3 {[%emt 0:00:04]} O-O {[%emt 0:01:06]} 6. O-O {[%emt 0:00:03]} d5 {[%emt 0:00:07]} 7. Nbd2 {[%emt 0:00:04]} dxe4 {[%emt 0:01:00]} 8. dxe4 {[%emt 0:00:04]} a5 {[%emt 0:00:46]} 9. a4 {[%emt 0:00:28]} Qe7 {[%emt 0:00:42]} 10. Qc2 {[%emt 0:00:11]} Nd8 {[%emt 0:13:41]} 11. Be2 {[%emt 0:00:23]} b6 {[%emt 0:01:18]} 12. Nc4 {[%emt 0:00:41]} Bb7 {[%emt 0:24:49]} 13. Bd3 {[%emt 0:00:07]} Nd7 {[%emt 0:00:51]} 14. Rb1 {[%emt 0:01:16]} Bc6 {[%emt 0:03:53]} 15. Bd2 {[%emt 0:02:03]} Bd6 {[%emt 0:19:32]} 16. Be3 {[%emt 0:02:09]} Ne6 {[%emt 0:01:15]} 17. Nxd6 {[%emt 0:02:11]} Qxd6 {[%emt 0:01:19]} 18. Bb5 {[%emt 0:00:05]} Ndc5 {[%emt 0:07:13]} 19. b4 {[%emt 0:00:33]} Bxb5 {[%emt 0:01:46]} 20. axb5 {[%emt 0:00:49]} axb4 {[%emt 0:00:26]} 21. cxb4 {[%emt 0:01:14]} Qd3 {[%emt 0:00:34]} 22. Qxd3 {[%emt 0:00:11]} Nxd3 {[%emt 0:00:05]} 23. Rb3 {[%emt 0:00:03]} Rfd8 {[%emt 0:00:28]} 24. g3 {[%emt 0:00:06]} Ra4 {[%emt 0:06:47]} 25. Rfb1 {[%emt 0:00:09]} g6 {[%emt 0:00:57]} 26. Ng5 {[%emt 0:04:07]} Nxg5 {[%emt 0:02:55]} 27. Bxg5 {[%emt 0:00:05]} Rd4 {[%emt 0:00:06]} 28. Rc3 {[%emt 0:00:03]} Kg7 {[%emt 0:02:24]} 29. Be3 {[%emt 0:02:27]} Rdxb4 {[%emt 0:01:40]} 30. Rxb4 {[%emt 0:00:07]} Nxb4 {[%emt 0:00:06]} 31. Rxc7 {[%emt 0:00:03]} Ra5 {[%emt 0:01:00]} 32. Rc3 {[%emt 0:00:15]} f5 {[%emt 0:02:28]} 33. Rb3 {[%emt 0:01:10]} Nc2 {[%emt 0:00:57]} 34. Bxb6 {[%emt 0:00:20]} Ra3 {[%emt 0:00:05]} 35. Rb1 {[%emt 0:01:06]} Ra8 {[%emt 0:01:10]} 36. Bc7 {[%emt 0:00:17]} Na3 {[%emt 0:00:13]} 37. Ra1 {[%emt 0:00:21]} 1-0

[Event "Arsen Yeghiazaryan Memorial 2022"]
[Site "Yerevan"]
[Date "2022.07.08"]
[Round "8.2"]
[White "Piliposyan, Robert"]
[Black "Alaverdyan, Gevorg"]
[Result "1-0"]
[ECO "E73"]
[WhiteElo "2287"]
[BlackElo "2336"]
[Annotator "RC"]
[PlyCount "89"]
[EventDate "2022.06.30"]
[EventType "tourn"]
[EventCountry "ARM"]
[SourceTitle "playchess.com"]
[Source "ChessBase"]
[SourceQuality "1"]
[TimeControl "40/5400+30:1800+30"]

1. d4 {[%emt 0:00:08]} Nf6 {[%emt 0:00:05]} 2. c4 {[%emt 0:00:04]} g6 {[%emt 0:00:06]} 3. Nc3 {[%emt 0:00:04]} Bg7 {[%emt 0:00:04]} 4. e4 {[%emt 0:00:05]} d6 {[%emt 0:00:06]} 5. Be2 {[%emt 0:00:12]} O-O {[%emt 0:00:14]} 6. Be3 {[%emt 0:00:05]} Na6 {[%emt 0:00:05]} 7. h4 {[%emt 0:00:12]} h5 {[%emt 0:00:20]} 8. Nf3 {[%emt 0:10:51]} Ng4 {[%emt 0:08:13]} 9. Bg5 {[%emt 0:01:49]} f6 {[%emt 0:00:18]} 10. Bc1 {[%emt 0:04:19]} e5 {[%emt 0:00:08]} 11. d5 {[%emt 0:12:16]} c6 {[%emt 0:00:43]} 12. O-O {[%emt 0:11:15]} f5 {[%emt 0:15:24]} 13. exf5 {[%emt 0:07:42]} gxf5 {[%emt 0:01:11]} 14. Ng5 {[%emt 0:02:12]} c5 {[%emt 0:02:38]} 15. f3 {[%emt 0:07:15]} Nf6 {[%emt 0:16:15]} 16. f4 {[%emt 0:03:17]} Qe8 {[%emt 0:08:26]} 17. Nb5 {[%emt 0:04:44]} e4 {[%emt 0:03:30]} 18. Nxd6 {[%emt 0:00:59]} Qg6 {[%emt 0:00:02]} 19. Nxc8 {[%emt 0:03:09]} Rfxc8 {[%emt 0:01:25]} 20. Bd2 {[%emt 0:06:41]} Ng4 {[%emt 0:03:04]} 21. Bxg4 {[%emt 0:06:15]} Bd4+ {[%emt 0:01:00]} 22. Kh2 {[%emt 0:00:35]} hxg4 {[%emt 0:00:02]} 23. Bc3 {[%emt 0:03:04]} Qf6 {[%emt 0:00:02]} 24. Qd2 {[%emt 0:02:57]} Nb4 {[%emt 0:09:40]} 25. Bxb4 {[%emt 0:01:02]} cxb4 {[%emt 0:00:02]} 26. Qxb4 {[%emt 0:00:18]} Rab8 {[%emt 0:04:06]} 27. Rad1 {[%emt 0:01:20]} Bc5 {[%emt 0:03:39]} 28. Qb5 {[%emt 0:01:00]} Qd6 {[%emt 0:09:07]} 29. Qb3 {[%emt 0:02:20]} Qh6 {[%emt 0:05:29]} 30. g3 {[%emt 0:00:17]} Bd6 {[%emt 0:00:11]} 31. Ne6 {[%emt 0:00:45]} b6 {[%emt 0:00:03]} 32. Qc3 {[%emt 0:01:36]} Re8 {[%emt 0:02:56]} 33. b4 {[%emt 0:00:38]} Rxe6 {[%emt 0:00:29]} 34. dxe6 {[%emt 0:00:03]} Qxe6 {[%emt 0:00:02]} 35. Rd5 {[%emt 0:00:45]} Rc8 {[%emt 0:05:33]} 36. Rfd1 {[%emt 0:01:16]} Bf8 {[%emt 0:00:05]} 37. c5 {[%emt 0:04:37]} bxc5 {[%emt 0:00:06]} 38. bxc5 {[%emt 0:00:03]} e3 {[%emt 0:00:06]} 39. Qe5 {[%emt 0:00:38]} Qa6 {[%emt 0:04:34]} 40. Qxe3 {[%emt 0:00:00]} Rb8 {[%emt 0:00:00]} 41. Rxf5 {[%emt 0:01:45]} Rb2+ {[%emt 0:07:46]} 42. Rd2 {[%emt 0:01:14]} Qxa2 {[%emt 0:00:03]} 43. Rfd5 {[%emt 0:01:16]} Qxd5 {[%emt 0:00:15]} 44. Rxb2 {[%emt 0:00:07]} Bxc5 {[%emt 0:00:02]} 45. Qb3 {[%emt 0:00:35]} 1-0